bitfinex/quotes_BTCUSD_20241226
["timestamp","ask_amount","ask_price","bid_price","bid_amount"]
[1735233125316,0.00103746,96611.0,96598.0,0.12381012]
[1735233125686,0.207017,96610.0,96601.0,0.0001706]
[1735233125885,0.00103746,96609.0,96601.0,0.0001706]
[1735233126207,0.207022,96608.0,96601.0,0.0001706]
[1735233126613,0.414044,96608.0,96601.0,0.0001706]
[1735233126839,0.207032,96603.0,96601.0,0.0001706]
[1735233127035,0.00103746,96602.0,96601.0,0.0001706]
[1735233127209,0.00103746,96615.0,96601.0,0.0001706]
[1735233127562,0.20804646,96614.0,96601.0,0.0001706]
[1735233127902,0.41505646,96614.0,96601.0,0.0031706]
[1735233128352,0.207022,96608.0,96601.0,0.0031706]
[1735233128708,0.207026,96606.0,96601.0,0.0031706]
[1735233128907,0.00103746,96607.0,96601.0,0.0031706]
[1735233128908,0.207021,96609.0,96601.0,0.0031706]
[1735233129038,0.20805946,96608.0,96601.0,0.0031706]
[1735233129239,0.207031,96604.0,96601.0,0.0031706]
[1735233129435,0.207022,96608.0,96601.0,0.0031706]
[1735233129642,0.00103746,96607.0,96601.0,0.0031706]
[1735233130146,0.207026,96606.0,96601.0,0.0031706]
[1735233130344,0.00103746,96605.0,96601.0,0.0001706]
[1735233130481,0.20703,96604.0,96601.0,0.0001706]
[1735233130683,0.20703,96604.0,96601.0,0.0011706]
[1735233130684,0.00103746,96603.0,96601.0,0.0011706]
[1735233131310,0.20684457,96604.0,96601.0,0.0011706]
[1735233131526,0.207026,96606.0,96601.0,0.0001706]
[1735233132095,0.46585603,96606.0,96601.0,0.0001706]
[1735233132313,0.414053,96606.0,96601.0,0.0001706]
[1735233132517,0.41406,96604.0,96601.0,0.0001706]
[1735233132749,0.31101632,96604.0,96601.0,0.0001706]
[1735233133176,0.00594088,96603.0,96601.0,0.0001706]
[1735233133897,0.207035,96602.0,96601.0,0.0001706]
[1735233134103,0.28502652,96602.0,96601.0,0.0001706]
[1735233134509,0.2909674,96602.0,96601.0,0.0001706]
[1735233134870,0.39495372,96602.0,96601.0,0.0001706]
[1735233135892,0.47085372,96602.0,96601.0,0.0001706]
[1735233136260,0.3928622,96602.0,96601.0,0.0001706]
[1735233139087,0.3928622,96602.0,96590.0,0.02092113]
[1735233139261,0.207039,96600.0,96590.0,0.02107572]
[1735233139488,0.10398632,96599.0,96590.0,0.02107572]
[1735233139689,0.10984538,96599.0,96590.0,0.02107572]
[1735233140001,0.00585906,96599.0,96590.0,0.02107572]
[1735233140202,0.00585906,96599.0,96590.0,0.04389019]
[1735233140453,0.0759,96621.0,96591.0,0.00103527]
[1735233140627,0.10398632,96616.0,96604.0,0.20703]
[1735233141025,0.00585906,96615.0,96600.0,0.33084712]
[1735233141231,0.206998,96620.0,96604.0,0.207029]
[1735233141429,0.206998,96620.0,96600.0,0.53788612]
[1735233141430,0.00585906,96614.0,96600.0,0.53788612]
[1735233141629,0.206998,96620.0,96600.0,0.40534113]
[1735233141835,0.00585906,96613.0,96600.0,0.40534113]
[1735233142079,0.206998,96620.0,96600.0,0.33084712]
[1735233142432,0.00585906,96612.0,96600.0,0.33084712]
[1735233142635,0.206988,96624.0,96604.0,0.207028]
[1735233142882,0.206991,96623.0,96600.0,0.13598468]
[1735233143289,0.00585906,96616.0,96600.0,0.13598468]
[1735233143857,0.02129354,96616.0,96600.0,0.13598468]
[1735233144057,0.00585906,96615.0,96600.0,0.34302168]
[1735233144668,0.00585906,96615.0,96600.0,0.55005968]
[1735233144873,0.02129354,96616.0,96600.0,0.34302168]
[1735233145239,0.00588063,96615.0,96600.0,0.34302168]
[1735233146201,0.02129659,96614.0,96600.0,0.34302168]
[1735233146836,0.00588063,96613.0,96604.0,0.207029]
[1735233147012,0.206991,96623.0,96604.0,0.207029]
[1735233147186,0.206991,96623.0,96601.0,0.207037]
[1735233147391,0.00590063,96616.0,96601.0,0.207037]
[1735233147786,0.206999,96619.0,96600.0,0.13598468]
[1735233147999,0.207005,96616.0,96600.0,0.13598468]
[1735233148199,0.207014,96612.0,96600.0,0.01217456]
[1735233148396,0.207014,96612.0,96592.0,0.207056]
[1735233148953,0.00590104,96611.0,96592.0,0.414112]
[1735233149094,0.00590104,96611.0,96596.0,0.207047]
[1735233149298,0.06244096,96611.0,96600.0,0.0001712]
[1735233150845,0.00590104,96611.0,96600.0,0.0001712]
[1735233151241,0.10398632,96615.0,96600.0,0.0001712]
[1735233151423,0.00590104,96610.0,96600.0,0.0001712]
[1735233151623,0.207009,96614.0,96600.0,0.0001712]
[1735233151842,0.00590104,96609.0,96600.0,0.0001712]
[1735233152181,0.31099532,96614.0,96600.0,0.0001712]
[1735233152182,0.00590104,96608.0,96600.0,0.0001712]
[1735233152337,0.31099532,96614.0,96600.0,0.0001712]
[1735233152541,0.00590104,96607.0,96600.0,0.0001712]
[1735233152761,8.56e-05,96616.0,96601.0,0.207037]
[1735233153076,0.0049246,96606.0,96601.0,0.207037]
[1735233153277,8.56e-05,96616.0,96601.0,0.207037]
[1735233153583,8.56e-05,96616.0,96600.0,0.12398132]
[1735233153584,0.31099332,96615.0,96600.0,0.0001712]
[1735233153721,0.31591792,96615.0,96600.0,0.0011712]
[1735233154160,0.31591792,96615.0,96601.0,0.003]
[1735233154478,0.10891092,96615.0,96601.0,0.003]
[1735233155525,0.31591792,96615.0,96601.0,0.003]
[1735233155943,0.0049246,96615.0,96601.0,0.003]
[1735233156320,0.0049246,96615.0,96600.0,0.12398132]
[1735233156702,0.0049246,96615.0,96600.0,0.21597373]
[1735233156896,8.56e-05,96616.0,96600.0,0.21597373]
[1735233157322,8.56e-05,96616.0,96606.0,0.207026]
[1735233159211,8.56e-05,96616.0,96606.0,0.29901841]
[1735233160638,8.56e-05,96616.0,96606.0,0.207026]
[1735233160846,8.56e-05,96616.0,96605.0,0.09199241]
[1735233163986,8.56e-05,96616.0,96604.0,0.09199241]
[1735233164123,8.56e-05,96616.0,96604.0,0.29902041]
[1735233164587,8.56e-05,96616.0,96604.0,0.207028]
[1735233164784,0.00492657,96613.0,96604.0,0.207028]
[1735233164999,8.56e-05,96616.0,96604.0,0.207028]
[1735233165553,8.56e-05,96616.0,96601.0,0.207035]
[1735233165753,0.00492657,96615.0,96604.0,0.09199241]
[1735233165978,8.56e-05,96616.0,96604.0,0.09199241]
[1735233166375,8.56e-05,96616.0,96605.0,0.207028]
[1735233166583,8.56e-05,96616.0,96605.0,0.31101432]
[1735233166830,8.56e-05,96616.0,96605.0,0.10398632]
[1735233167029,8.56e-05,96616.0,96605.0,0.31101432]
[1735233167203,8.56e-05,96616.0,96604.0,0.09199241]
[1735233167427,0.00492657,96615.0,96604.0,0.09199241]
[1735233169168,0.207009,96614.0,96604.0,0.09199241]
[1735233169329,0.207016,96611.0,96603.0,0.09199241]
[1735233169726,0.0049324,96610.0,96603.0,0.09199241]
[1735233170796,0.0049324,96610.0,96600.0,0.0001712]
[1735233172515,0.0049324,96610.0,96600.0,0.0011712]
[1735233173166,0.207033,96603.0,96600.0,0.0011712]
[1735233173319,0.207037,96601.0,96600.0,0.0011712]
[1735233173481,0.31102332,96601.0,96600.0,0.0011712]
[1735233173679,0.3159201,96601.0,96600.0,0.0011712]
[1735233173890,0.40164761,96601.0,96600.0,0.0011712]
[1735233174660,0.40164761,96601.0,96600.0,0.0001712]
[1735233175484,0.3159201,96601.0,96600.0,0.0001712]
[1735233175995,0.3912201,96601.0,96600.0,0.0001712]
[1735233178168,0.40254237,96601.0,96600.0,0.0001712]
[1735233179567,0.1841831,96601.0,96600.0,0.0001712]
[1735233179772,0.00489678,96601.0,96600.0,0.0001712]
[1735233179976,0.09308493,96608.0,96580.0,0.12381012]
[1735233180150,0.00499307,96601.0,96590.0,0.20706]
[1735233180357,0.00015442,96601.0,96590.0,0.20706]
[1735233180558,0.00015442,96601.0,96587.0,0.207066]
[1735233180759,0.00483865,96600.0,96587.0,0.207066]
[1735233181589,0.00483865,96600.0,96588.0,0.20810021]
[1735233181887,0.00015442,96601.0,96588.0,0.20810021]
[1735233181888,0.00015442,96601.0,96588.0,0.41413]
[1735233182093,0.00015442,96601.0,96588.0,0.207065]
[1735233182293,0.00483865,96600.0,96588.0,0.207065]
[1735233182814,0.21187865,96600.0,96582.0,0.207077]
[1735233183359,0.00483865,96600.0,96586.0,0.207068]
[1735233183603,0.03021277,96601.0,96586.0,0.207068]
[1735233184268,0.03021277,96601.0,96586.0,0.22792615]
[1735233184438,0.04442698,96600.0,96586.0,0.22792615]
[1735233184737,0.04926563,96600.0,96586.0,0.22792615]
[1735233184971,0.20704,96600.0,96586.0,0.22792615]
[1735233185149,0.00480728,96599.0,96586.0,0.22792615]
[1735233185765,0.00015442,96601.0,96586.0,0.22792615]
[1735233186974,0.00015442,96601.0,96590.0,0.207059]
[1735233187295,0.0001712,96600.0,96590.0,0.207059]
[1735233187656,0.0001712,96600.0,96586.0,0.22792615]
[1735233188369,0.23258594,96599.0,96586.0,0.02085815]
[1735233189229,0.02554294,96599.0,96586.0,0.02085815]
[1735233189371,0.207045,96597.0,96586.0,0.02085815]
[1735233189569,0.207045,96597.0,96582.0,8.56e-05]
[1735233189977,0.02073566,96599.0,96582.0,8.56e-05]
[1735233189978,0.207058,96592.0,96582.0,8.56e-05]
[1735233190183,0.04189371,96591.0,96582.0,8.56e-05]
[1735233190394,0.08,96589.0,96582.0,8.56e-05]
[1735233190592,0.207065,96588.0,96582.0,8.56e-05]
[1735233190794,0.207075,96584.0,96582.0,8.56e-05]
[1735233191037,0.10398632,96583.0,96582.0,8.56e-05]
[1735233191347,0.1897891,96583.0,96582.0,0.0030856]
[1735233191781,0.10878756,96583.0,96582.0,0.0030856]
[1735233191984,0.10878756,96583.0,96582.0,0.0110856]
[1735233192211,0.10878756,96583.0,96582.0,0.0080856]
[1735233192416,0.10878756,96583.0,96582.0,0.0060856]
[1735233194295,0.11078756,96583.0,96582.0,8.56e-05]
[1735233194500,0.19278632,96583.0,96582.0,8.56e-05]
[1735233196700,0.26918632,96583.0,96582.0,8.56e-05]
[1735233197113,0.36918632,96583.0,96582.0,8.56e-05]
[1735233197317,0.58988632,96583.0,96582.0,8.56e-05]
[1735233198624,0.50888756,96583.0,96582.0,8.56e-05]
[1735233199047,0.207116,96564.0,96549.0,0.207146]
[1735233199290,0.10398632,96563.0,96549.0,0.207146]
[1735233199505,0.10398632,96563.0,96543.0,0.0001708]
[1735233199506,0.207125,96560.0,96543.0,0.0001708]
[1735233199715,0.10864218,96563.0,96543.0,0.0001708]
[1735233199716,0.207156,96546.0,96543.0,0.0001708]
[1735233199928,0.207159,96544.0,96543.0,0.0001708]
[1735233200139,0.31114532,96544.0,96543.0,0.0001708]
[1735233200342,0.31585977,96544.0,96543.0,0.0001708]
[1735233200774,0.41585977,96544.0,96543.0,0.0001708]
[1735233200973,0.50651615,96544.0,96543.0,0.0001708]
[1735233201175,0.50651615,96544.0,96543.0,0.0061708]
[1735233201350,0.55421615,96544.0,96543.0,0.0061708]
[1735233201930,0.55421615,96544.0,96543.0,0.0001708]
[1735233202128,0.55421615,96544.0,96543.0,0.0021708]
[1735233202688,0.56546847,96544.0,96543.0,0.0021708]
[1735233203066,0.31585977,96544.0,96543.0,0.0021708]
[1735233203267,0.00011714,96544.0,96543.0,0.0021708]
[1735233203467,0.00111714,96544.0,96543.0,0.0021708]
[1735233203872,0.00111714,96544.0,96543.0,0.0001708]
[1735233203873,0.00011714,96544.0,96543.0,0.0001708]
[1735233204049,0.00311714,96544.0,96531.0,0.2053558]
[1735233204253,0.00411714,96544.0,96531.0,0.2053558]
[1735233204872,0.00011714,96544.0,96531.0,0.2053558]
[1735233205564,0.00011714,96544.0,96531.0,0.21654796]
[1735233205789,0.00011714,96544.0,96532.0,0.207185]
[1735233205962,0.00011714,96544.0,96532.0,0.41437]
[1735233206370,0.00011714,96544.0,96532.0,0.207185]
[1735233207199,0.00011714,96544.0,96532.0,0.207184]
[1735233207949,0.00011714,96544.0,96537.0,0.207172]
[1735233209324,0.00011714,96544.0,96533.0,0.207183]
[1735233209522,0.00011714,96544.0,96531.0,0.207185]
[1735233209725,0.02072661,96543.0,96531.0,0.207185]
[1735233210797,0.02072661,96543.0,96533.0,8.56e-05]
[1735233213646,0.00011714,96544.0,96535.0,0.207178]
[1735233214863,0.00011714,96544.0,96534.0,0.20718]
[1735233215071,0.00011714,96544.0,96533.0,8.56e-05]
[1735233215072,0.207161,96543.0,96533.0,8.56e-05]
[1735233215429,0.00011714,96544.0,96533.0,8.56e-05]
[1735233219366,0.20727614,96544.0,96533.0,8.56e-05]
[1735233219589,0.02072761,96543.0,96533.0,8.56e-05]
[1735233219972,0.00011714,96544.0,96533.0,8.56e-05]
[1735233220376,0.207161,96543.0,96533.0,8.56e-05]
[1735233220777,0.207171,96539.0,96533.0,8.56e-05]
[1735233221347,0.287663,96542.0,96533.0,8.56e-05]
[1735233221716,0.00011714,96544.0,96533.0,0.4144486]
[1735233221919,0.00011714,96544.0,96533.0,0.2072666]
[1735233222541,0.00011714,96544.0,96534.0,0.20718]
[1735233222843,0.001,96542.0,96534.0,0.20718]
[1735233223143,0.00011714,96544.0,96534.0,0.20718]
[1735233223340,0.001,96539.0,96534.0,0.20718]
[1735233223749,0.001,96539.0,96533.0,8.56e-05]
[1735233224370,0.02222781,96539.0,96533.0,8.56e-05]
[1735233224565,0.02122781,96539.0,96533.0,8.56e-05]
[1735233225011,0.02222781,96539.0,96533.0,8.56e-05]
[1735233225647,0.10398632,96538.0,96533.0,8.56e-05]
[1735233225820,0.20718,96534.0,96533.0,8.56e-05]
[1735233226031,0.37937026,96534.0,96533.0,8.56e-05]
[1735233226639,0.31116632,96534.0,96533.0,8.56e-05]
[1735233227211,0.39166632,96534.0,96533.0,0.0010856]
[1735233227949,0.39166632,96534.0,96533.0,8.56e-05]
[1735233228714,0.39266632,96534.0,96533.0,8.56e-05]
[1735233228909,0.207204,96523.0,96511.0,0.2063993]
[1735233229187,0.0207204,96522.0,96508.0,0.03214806]
[1735233229503,0.0207204,96522.0,96508.0,0.02117042]
[1735233230261,0.0227204,96522.0,96509.0,0.207234]
[1735233230683,0.002,96522.0,96509.0,0.207234]
[1735233231062,0.207204,96523.0,96509.0,0.207234]
[1735233231269,0.001,96522.0,96509.0,0.207234]
[1735233231650,0.207208,96521.0,96508.0,0.02117042]
[1735233231797,0.207208,96521.0,96509.0,0.207234]
[1735233232047,0.0414406,96520.0,96508.0,0.02117042]
[1735233232546,0.0414406,96520.0,96509.0,0.207234]
[1735233232957,0.003,96521.0,96509.0,0.207234]
[1735233233461,0.002,96520.0,96509.0,0.207234]
[1735233233960,0.001,96521.0,96509.0,0.207234]
[1735233234114,0.002,96520.0,96509.0,0.207234]
[1735233234320,0.003,96520.0,96509.0,0.207234]
[1735233234621,0.0417406,96519.0,96509.0,0.207234]
[1735233234842,0.002,96520.0,96509.0,0.207234]
[1735233235041,0.002,96520.0,96513.0,0.207225]
[1735233235241,0.001,96520.0,96510.0,0.207232]
[1735233235934,0.207201,96525.0,96510.0,0.207232]
[1735233236141,0.002,96520.0,96510.0,0.207232]
[1735233237260,0.005,96520.0,96510.0,0.2073177]
[1735233237610,0.004,96520.0,96510.0,0.2073177]
[1735233237986,0.005,96520.0,96510.0,0.2073177]
[1735233239525,0.005,96520.0,96514.0,0.207222]
[1735233239774,0.005,96520.0,96518.0,0.207214]
[1735233240298,0.004,96520.0,96518.0,0.207214]
[1735233240493,0.005,96520.0,96518.0,0.207214]
[1735233241060,0.004,96520.0,96518.0,0.207214]
[1735233241469,0.004,96520.0,96518.0,0.209214]
[1735233241672,0.207173,96538.0,96523.0,0.207203]
[1735233241878,0.27729949,96538.0,96523.0,0.207203]
[1735233242832,0.27929949,96538.0,96523.0,0.207203]
[1735233243978,0.002,96538.0,96523.0,0.207203]
[1735233244391,0.003,96538.0,96520.0,0.12381012]
[1735233244551,0.001,96538.0,96520.0,0.12381012]
[1735233244760,0.0001714,96539.0,96528.0,0.207192]
[1735233244967,0.002,96538.0,96528.0,0.207192]
[1735233245173,0.001,96538.0,96528.0,0.12381012]
[1735233245376,0.001,96538.0,96536.0,0.207175]
[1735233245571,0.002,96538.0,96536.0,0.207175]
[1735233246292,0.0011714,96539.0,96536.0,0.414351]
[1735233246752,0.002,96538.0,96536.0,0.414351]
[1735233247163,0.002,96538.0,96536.0,0.207175]
[1735233247548,0.002,96538.0,96531.0,0.414374]
[1735233247851,0.0001714,96539.0,96531.0,0.414374]
[1735233247984,0.0001714,96539.0,96531.0,0.207187]
[1735233248183,0.0001714,96539.0,96536.0,0.004]
[1735233248428,0.0001714,96539.0,96537.0,0.207174]
[1735233250244,0.0001714,96539.0,96535.0,0.207178]
[1735233250621,0.0011714,96539.0,96535.0,0.207178]
[1735233251031,0.0031714,96539.0,96535.0,0.207178]
[1735233251378,0.0021714,96539.0,96531.0,0.01111579]
[1735233251551,0.2093424,96539.0,96535.0,0.001]
[1735233251760,0.0021714,96539.0,96535.0,0.001]
[1735233252330,0.0001714,96539.0,96531.0,8.57e-05]
[1735233252581,0.0011714,96539.0,96531.0,8.57e-05]
[1735233252799,0.0041714,96539.0,96531.0,8.57e-05]
[1735233253979,0.0001714,96539.0,96531.0,8.57e-05]
[1735233254179,0.0031714,96539.0,96531.0,8.57e-05]
[1735233254543,0.0011714,96539.0,96531.0,8.57e-05]
[1735233254747,0.0001714,96539.0,96531.0,8.57e-05]
[1735233254925,0.0031714,96539.0,96531.0,8.57e-05]
[1735233255237,0.0011714,96539.0,96531.0,8.57e-05]
[1735233255399,0.0021714,96539.0,96531.0,8.57e-05]
[1735233255581,0.0001714,96539.0,96531.0,8.57e-05]
[1735233255779,0.0011714,96539.0,96531.0,8.57e-05]
[1735233256881,0.0001714,96539.0,96531.0,8.57e-05]
[1735233257232,0.0011714,96539.0,96531.0,8.57e-05]
[1735233257648,0.0031714,96539.0,96531.0,8.57e-05]
[1735233257803,0.0021714,96539.0,96531.0,8.57e-05]
[1735233258003,0.0031714,96539.0,96531.0,8.57e-05]
[1735233258224,0.0051714,96539.0,96531.0,8.57e-05]
[1735233258833,0.0041714,96539.0,96531.0,8.57e-05]
[1735233260098,0.0051714,96539.0,96531.0,8.57e-05]
[1735233260663,0.0041714,96539.0,96531.0,8.57e-05]
[1735233261437,0.0051714,96539.0,96531.0,8.57e-05]
[1735233264838,0.02643339,96539.0,96531.0,8.57e-05]
[1735233266155,0.0041714,96539.0,96531.0,8.57e-05]
[1735233266539,0.0051714,96539.0,96531.0,8.57e-05]
[1735233266834,0.0041714,96539.0,96531.0,8.57e-05]
[1735233267157,0.0001714,96539.0,96531.0,8.57e-05]
[1735233267337,0.0011714,96539.0,96531.0,8.57e-05]
[1735233267551,0.0001714,96539.0,96531.0,8.57e-05]
[1735233267967,0.0011714,96539.0,96531.0,8.57e-05]
[1735233268166,0.0001714,96539.0,96531.0,8.57e-05]
[1735233268772,0.0001714,96539.0,96538.0,0.15]
[1735233268969,0.00028854,96544.0,96543.0,0.207161]
[1735233269173,0.10876478,96573.0,96550.0,0.12381012]
[1735233269400,0.31586178,96573.0,96554.0,0.207136]
[1735233269587,0.10876478,96573.0,96554.0,0.207136]
[1735233269803,0.31586178,96573.0,96554.0,0.207136]
[1735233270382,0.09408493,96570.0,96554.0,0.207136]
[1735233270800,0.004,96570.0,96554.0,0.207136]
[1735233271121,0.003,96570.0,96558.0,0.02071844]
[1735233271433,0.004,96570.0,96558.0,0.02071844]
[1735233271641,0.001,96570.0,96560.0,0.12381012]
[1735233271982,0.003,96570.0,96568.0,0.207107]
[1735233272816,0.002,96570.0,96568.0,0.207107]
[1735233273169,0.207116,96565.0,96545.0,0.207157]
[1735233273379,0.31110232,96565.0,96550.0,0.12381012]
[1735233273585,0.31110232,96565.0,96557.0,0.09199241]
[1735233274770,0.31110232,96565.0,96557.0,0.09699241]
[1735233274986,0.31110232,96565.0,96557.0,0.005]
[1735233275187,0.31110232,96565.0,96550.0,0.12381012]
[1735233275513,0.37560059,96565.0,96550.0,0.12381012]
[1735233275716,0.10398632,96564.0,96532.0,0.207183]
[1735233275940,0.10398632,96564.0,96536.0,0.207174]
[1735233275941,0.20712,96562.0,96536.0,0.207174]
[1735233276118,0.207136,96555.0,96550.0,0.12381012]
[1735233276333,0.414272,96555.0,96550.0,0.12381012]
[1735233276505,0.207136,96555.0,96550.0,0.12381012]
[1735233276715,0.207136,96555.0,96540.0,0.33097712]
[1735233276912,0.207136,96555.0,96542.0,0.01072273]
[1735233277464,0.207129,96558.0,96542.0,0.01072273]
[1735233277772,0.10398632,96557.0,96550.0,0.001]
[1735233277967,0.207133,96556.0,96542.0,0.01072273]
[1735233278168,0.207133,96556.0,96543.0,0.00115457]
[1735233278666,0.10398632,96557.0,96543.0,0.00115457]
[1735233278875,0.207133,96556.0,96543.0,0.00115457]
[1735233279474,0.207135,96555.0,96543.0,0.00015457]
[1735233280234,0.13529845,96554.0,96543.0,0.00015457]
[1735233280551,0.0787,96553.0,96543.0,0.00015457]
[1735233280907,0.10398632,96552.0,96543.0,0.00015457]
[1735233281283,0.207144,96551.0,96543.0,0.00015457]
[1735233282877,0.187144,96551.0,96543.0,0.00015457]
[1735233283075,0.187144,96551.0,96543.0,0.00115457]
[1735233283775,0.187144,96551.0,96543.0,0.00215457]
[1735233284590,0.207146,96550.0,96543.0,0.00215457]
[1735233285375,0.207158,96545.0,96543.0,0.00215457]
[1735233285595,0.10398632,96544.0,96543.0,0.00224017]
[1735233285795,0.18268632,96544.0,96543.0,0.00224017]
[1735233286225,0.18268632,96544.0,96543.0,0.00024017]
[1735233286427,0.18268632,96544.0,96543.0,0.00124017]
[1735233286831,0.27240457,96544.0,96543.0,0.00124017]
[1735233287040,0.28320989,96544.0,96543.0,0.00124017]
[1735233287419,0.28320989,96544.0,96543.0,0.00024017]
[1735233287762,0.19349164,96544.0,96543.0,0.00024017]
[1735233288079,0.19349164,96544.0,96543.0,0.00124017]
[1735233288589,0.19349164,96544.0,96543.0,0.00024017]
[1735233288937,0.19449164,96544.0,96543.0,0.00024017]
[1735233289367,0.19349164,96544.0,96543.0,0.00024017]
[1735233290002,0.19549164,96544.0,96543.0,0.00024017]
[1735233290205,0.19649164,96544.0,96543.0,0.00024017]
[1735233290586,0.27622088,96544.0,96543.0,0.00124017]
[1735233290770,0.18968632,96544.0,96543.0,0.00024017]
[1735233290970,0.18968632,96544.0,96543.0,0.00124017]
[1735233291174,0.19368632,96544.0,96543.0,0.00124017]
[1735233291614,0.19068632,96544.0,96543.0,0.00124017]
[1735233292113,0.19368632,96544.0,96543.0,0.00124017]
[1735233299907,0.18268632,96544.0,96543.0,0.00024017]
[1735233300125,0.18268632,96544.0,96543.0,0.00124017]
[1735233300351,0.18668632,96544.0,96543.0,0.00124017]
[1735233301340,0.18968632,96544.0,96543.0,0.00124017]
[1735233302092,0.007,96544.0,96543.0,0.00124017]
[1735233302715,0.04914682,96544.0,96543.0,0.00124017]
[1735233302924,0.10798632,96544.0,96543.0,0.00124017]
[1735233303158,0.15408632,96544.0,96543.0,0.00124017]
[1735233303354,0.15008632,96544.0,96543.0,0.00024017]
[1735233303775,0.23338632,96544.0,96543.0,0.00024017]
[1735233303982,0.23438632,96544.0,96543.0,0.00024017]
[1735233304170,0.60298707,96544.0,96543.0,0.00024017]
[1735233304463,0.60698707,96544.0,96543.0,0.00024017]
[1735233304910,0.60598707,96544.0,96543.0,0.00024017]
[1735233305326,0.61461798,96544.0,96543.0,0.00024017]
[1735233305630,0.61861798,96544.0,96543.0,0.00024017]
[1735233305765,0.61661798,96544.0,96543.0,0.00024017]
[1735233306119,0.61861798,96544.0,96543.0,0.00024017]
[1735233307116,0.35391723,96544.0,96543.0,0.00024017]
[1735233308052,0.47691723,96544.0,96543.0,0.00024017]
[1735233309046,0.1,96536.0,96504.0,0.04506787]
[1735233309286,0.20722,96516.0,96510.0,0.00011714]
[1735233309482,0.207228,96512.0,96510.0,0.00011714]
[1735233309608,0.10398632,96511.0,96510.0,0.00011714]
[1735233310760,0.18668632,96511.0,96510.0,0.00011714]
[1735233311160,0.31068632,96511.0,96510.0,0.00011714]
[1735233311561,0.31068632,96511.0,96510.0,0.00111714]
[1735233311964,0.31168632,96511.0,96510.0,0.00111714]
[1735233313781,0.31068632,96511.0,96510.0,0.00111714]
[1735233314016,0.31068632,96511.0,96485.0,0.20708494]
[1735233314017,0.414472,96508.0,96485.0,0.20708494]
[1735233314218,0.10398632,96507.0,96489.0,0.00051562]
[1735233314691,0.207264,96496.0,96489.0,0.00051562]
[1735233314892,0.207266,96494.0,96489.0,0.00051562]
[1735233315096,0.207271,96492.0,96489.0,0.00051562]
[1735233315327,0.18348632,96491.0,96489.0,0.00051562]
[1735233315534,0.207275,96490.0,96489.0,0.00051562]
[1735233315739,0.43426132,96490.0,96489.0,0.00051562]
[1735233315944,0.52709095,96490.0,96489.0,0.00051562]
[1735233316539,0.52709095,96490.0,96489.0,0.00151562]
[1735233316906,0.52709095,96490.0,96489.0,0.00051562]
[1735233317751,0.52709095,96490.0,96489.0,0.00151562]
[1735233319076,0.023,96484.0,96458.0,0.02039647]
[1735233319240,0.207329,96465.0,96458.0,0.02039647]
[1735233319424,0.10398632,96464.0,96458.0,0.02039647]
[1735233320612,0.10398632,96464.0,96458.0,0.02239647]
[1735233321016,0.207292,96482.0,96459.0,0.0824]
[1735233321214,0.207292,96482.0,96458.0,0.02239647]
[1735233321215,0.207277,96489.0,96470.0,0.12381012]
[1735233321414,0.10398632,96488.0,96471.0,0.0824]
[1735233321773,0.207281,96487.0,96472.0,0.207313]
[1735233321946,0.10398632,96486.0,96472.0,0.207313]
[1735233322163,0.05256063,96485.0,96472.0,0.207313]
[1735233322345,0.10398632,96484.0,96472.0,0.207313]
[1735233322822,0.10398632,96484.0,96472.0,0.414627]
[1735233323039,6.399e-05,96490.0,96471.0,0.0824]
[1735233323040,6.399e-05,96490.0,96477.0,0.0454]
[1735233323248,0.006,96482.0,96480.0,0.33110412]
[1735233323457,0.002,96486.0,96480.0,0.207294]
[1735233323866,0.004,96484.0,96480.0,0.207294]
[1735233324062,0.002,96486.0,96480.0,0.207294]
[1735233324468,0.002,96486.0,96480.0,0.209294]
[1735233324673,0.10405031,96490.0,96480.0,0.207294]
[1735233324878,0.002,96484.0,96480.0,0.207294]
[1735233325486,0.01040503,96489.0,96480.0,0.207294]
[1735233326583,0.10405031,96490.0,96480.0,0.209294]
[1735233326804,0.10405031,96490.0,96480.0,0.208294]
[1735233327020,0.10405031,96490.0,96480.0,0.001]
[1735233327236,0.001,96489.0,96480.0,0.001]
[1735233327439,0.207277,96489.0,96480.0,0.001]
[1735233327670,0.05185973,96488.0,96480.0,0.001]
[1735233327883,0.05185973,96488.0,96477.0,0.06619995]
[1735233328086,0.207284,96486.0,96477.0,0.06619995]
[1735233328236,0.10398632,96485.0,96466.0,0.0455]
[1735233328589,0.10398632,96485.0,96471.0,0.0824]
[1735233328829,0.0364194,96484.0,96471.0,0.0824]
[1735233329043,0.14040572,96484.0,96471.0,0.0824]
[1735233329253,0.20729,96483.0,96471.0,0.0824]
[1735233329459,0.20729,96483.0,96473.0,0.02109685]
[1735233330008,0.14040572,96484.0,96473.0,0.02109685]
[1735233330212,0.05550317,96483.0,96473.0,0.02109685]
[1735233330640,0.05550317,96483.0,96480.0,8.57e-05]
[1735233332054,0.05550317,96483.0,96480.0,0.0010857]
[1735233332262,6.399e-05,96490.0,96480.0,0.0010857]
[1735233332497,0.10405031,96490.0,96480.0,0.12489582]
[1735233332722,0.10405031,96490.0,96480.0,0.12689582]
[1735233333104,0.10405031,96490.0,96480.0,0.12589582]
[1735233333424,0.10405031,96490.0,96480.0,0.0020857]
[1735233333631,0.10405031,96490.0,96480.0,8.57e-05]
[1735233333927,0.10505031,96490.0,96480.0,8.57e-05]
[1735233334479,0.31232631,96490.0,96480.0,8.57e-05]
[1735233334649,0.207289,96484.0,96480.0,8.57e-05]
[1735233334847,0.20728,96488.0,96480.0,8.57e-05]
[1735233335535,0.207292,96482.0,96480.0,8.57e-05]
[1735233335737,0.10398632,96481.0,96480.0,8.57e-05]
[1735233337226,0.22698632,96481.0,96480.0,0.0020857]
[1735233337428,0.30998632,96481.0,96480.0,0.0020857]
[1735233338521,0.33916486,96481.0,96480.0,8.57e-05]
[1735233338724,0.42041436,96481.0,96480.0,0.0030857]
[1735233338952,0.42041436,96481.0,96446.0,0.06618657]
[1735233339152,0.207346,96457.0,96446.0,0.06344307]
[1735233339733,0.207341,96460.0,96447.0,0.207367]
[1735233339897,0.10398632,96459.0,96447.0,0.207367]
[1735233340092,0.207354,96454.0,96444.0,0.01068994]
[1735233340301,0.23847673,96458.0,96446.0,0.009]
[1735233340499,0.10398632,96457.0,96446.0,0.015]
[1735233340904,0.10398632,96457.0,96446.0,0.009]
[1735233341579,0.10398632,96457.0,96444.0,0.00215462]
[1735233342089,0.10398632,96457.0,96447.0,0.003]
[1735233342792,0.10398632,96457.0,96446.0,0.004]
[1735233343020,0.05186693,96456.0,96446.0,0.006]
[1735233343164,0.05186693,96456.0,96446.0,0.002]
[1735233343577,0.10398632,96457.0,96447.0,0.004]
[1735233343942,0.10398632,96457.0,96447.0,0.006]
[1735233344250,0.10398632,96457.0,96447.0,0.12981012]